Cogmind - Beta 13 @@@ ROGUE MODE // 2024.07.17 @ 11:09:26 Player: APerTAS Result: Destroyed by G-34 Mercenary with Small Laser Performance ------------- Evolutions (0) 0 Regions Visited (1) 200 Robots Destroyed (13) 65 Value Destroyed (391) 391 Prototype IDs (0) 0 Alien Tech Used (0) 0 Bonus (0) 0 TOTAL SCORE: 656 Bonus ------- None Cogmind --------- Core Integrity 0/250 Matter 300/300 Energy 100/100 System Corruption 0% Temperature Cool (6) Movement Core (50) Location -10/Materials Parts ------- > --- POWER (1) -------- (None) > --- PROPULSION (2) --- (None) > --- UTILITY (2) ------ (None) > --- WEAPON (2) ------- (None) > --- INVENTORY (5) ---- Light Ion Engine Improved Heat Sink Targeting Computer Particle Gun Light Cannon Peak State ------------ > --- POWER ------------ Ion Engine > --- PROPULSION ------- Armored Wheel Armored Wheel > --- UTILITY ---------- Improved Heat Sink Small Storage Unit > --- WEAPON ----------- Particle Gun Assault Rifle > --- INVENTORY -------- Armored Wheel Armored Wheel Heat Sink Visual Processing Unit Medium Laser Particle Gun Light Cannon Datajack [Rating: 13] Favorites ----------- Power Ion Engine Engine Ion Engine Propulsion Armored Wheel Treads Light Treads Wheel Armored Wheel Utility Improved Heat Sink Device Improved Heat Sink Storage Large Storage Unit Weapon Assault Rifle Energy Gun Particle Gun Ballistic Gun Assault Rifle Build | -11 -10 ------- Run | Yrd Mat Slots Evolved . | . . Power . | . . Propulsion . | . . Utility . | . . Weapon . | . . Parts Attached 19 | 6 13 Power 4 | 1 3 Engine 4 | 1 3 Core . | . . Reactor . | . . Propulsion 6 | 2 4 Treads 2 | 2 . Leg . | . . Wheel 4 | . 4 Hover . | . . Flight . | . . Utility 6 | 1 5 Device 4 | . 4 Storage 2 | 1 1 Processor . | . . Hackware . | . . Protection . | . . Artifact . | . . Weapon 3 | 2 1 Energy Gun 1 | . 1 Energy Cannon . | . . Ballistic Gun 2 | 2 . Ballistic Cannon . | . . Launcher . | . . Special Weapon . | . . Impact Weapon . | . . Slashing Weapon . | . . Piercing Weapon . | . . Special Melee Weapon . | . . Unidentified Prototypes . | . . Parts Lost 2 | . 2 Power 1 | . 1 Propulsion . | . . Utility 1 | . 1 Weapon . | . . Highest Loss Streak 1 | . 1 To Critical Strikes . | . . Average Slot Usage (%) 98 | . 98 Engine 13 | . 13 Treads 8 | . 8 Wheel 19 | . 19 Device 12 | . 12 Storage 13 | . 13 Energy Gun 10 | . 10 Ballistic Gun 17 | . 17 Naked Turns 8 | . 8 Heaviest Build 31 | 12 31 Greatest Support 40 | 40 40 Greatest Overweight (x) 1 | . 1 Average Overweight (x) . | . . Largest Inventory Capacity 15 | 8 15 Average Capacity 11 | 7 12 Most Carried 9 | 4 9 Average Carried 6 | 2 6 Final Capacity 8 | 8 5 Final Carried 5 | 4 5 Class Distribution -------------------- 100% | Mutant Dominant Class ---------------- Mutant | -10/Materials Resources | -11 -10 ----------- Run | Yrd Mat Matter Collected 723 | 176 547 Remotely . | . . Salvage Created 496 | . 496 Parts 29 | . 29 Haulers Intercepted 2 | . 2 Recyclers Shooed . | . . Parts Field Recycled . | . . Retrieved Matter . | . . Parts Self-Destructed . | . . Prevented . | . . Kills | -11 -10 ------- Run | Yrd Mat Combat Hostiles Destroyed 9 | . 9 Guns 9 | . 9 Classes Destroyed 4 | . 4 Hauler 2 | . 2 Operator 1 | . 1 Watcher 1 | . 1 Grunt 9 | . 9 Best Kill Streak 4 | . 4 Combat Bots Only 3 | . 3 Max Kills in Single Turn 1 | . 1 Gunslinging . | . . Exploded . | . . Melee . | . . Uniques/NPCs Destroyed . | . . Combat | -11 -10 -------- Run | Yrd Mat Hostile Shots Fired 110 | . 110 Missed 34 | . 34 Damage Taken 949 | . 949 Core 260 | . 260 Absorbed by Shields . | . . Core Remaining (%) 100 | 100 . Volleys Fired 79 | . 79 Largest 2 | . 2 Hottest 85 | . 85 Shots Fired 156 | . 156 Gun 156 | . 156 Cannon . | . . Launcher . | . . Special . | . . Kinetic 113 | . 113 Thermal 43 | . 43 Explosive . | . . Electromagnetic . | . . Robot Hit Streak 8 | . 8 Robot Miss Streak 5 | . 5 Penetration Max . | . . Secondary Targets 2 | . 2 Max Gunslinging Chain 1 | . 1 Shots Hit Robots 93 | . 93 Core Hits 27 | . 27 Critical Kills . | . . Critical Parts Destroyed 3 | . 3 Critical Strikes 3 | . 3 Destroy 3 | . 3 Melee Attacks . | . . Impact . | . . Slashing . | . . Piercing . | . . Sneak Attacks . | . . Combat Hostiles . | . . Follow-up Attacks . | . . Damage Inflicted 1237 | . 1237 Guns 1208 | . 1208 Cannons . | . . Explosions . | . . Melee . | . . Ramming 29 | . 29 Kinetic 798 | . 798 Thermal 410 | . 410 Explosive . | . . Electromagnetic . | . . Impact . | . . Slashing . | . . Piercing . | . . Highest Corruption . | . . Average Corruption . | . . Corruption Purged . | . . Corruption Blocked . | . . Overload Shots . | . . Overflow Damage . | . . Projectiles . | . . Explosions . | . . Melee . | . . Knockbacks . | . . Impact . | . . Kinetic . | . . Secondary . | . . Self-Inflicted Damage 13 | . 13 Shots . | . . Rammed 7 | . 7 Targets Rammed 7 | . 7 Kicked . | . . Crushed . | . . Highest Temperature 9 | . 9 Average Temperature 3 | . 3 Received Heat Transfer 516 | . 516 Siege Activations . | . . Robots Corrupted . | . . Combat Hostiles . | . . Parts Fried . | . . Impact Corruptions . | . . Robots Melted . | . . Combat Hostiles . | . . Parts Melted 1 | . 1 Heat Transferred 999 | . 999 Parts Sabotaged . | . . Parts Stolen . | . . Parts Stripped . | . . Power Chain Reactions . | . . Alert | -11 -10 ------- Run | Yrd Mat Peak Influence 175 | . 175 Initial . | . . Average 70 | . 74 Maximum Alert Level . | . . Low Security (%) 100 | 100 100 Level 1 . | . . Level 2 . | . . Level 3 . | . . Level 4 . | . . Level 5 . | . . High Security . | . . Max Security . | . . Squads Dispatched 3 | . 3 Investigation 2 | . 2 Extermination . | . . Reinforcement 1 | . 1 Assault . | . . Garrison . | . . Intercept . | . . Searches Triggered . | . . Construction Impeded . | . . Haulers Reinforced . | . . Active Scanning Responses . | . . Cargo Convoy Interrupts . | . . Stealth | -11 -10 --------- Run | Yrd Mat Distress Signals 4 | . 4 Communications Jammed . | . . Distress Signals . | . . Times Spotted 23 | . 23 Peak Tracking Total 5 | . 5 Tactical Retreats . | . . Traps | -11 -10 ------- Run | Yrd Mat Traps Triggered . | . . Indirectly . | . . Trap Hack Attempts . | . . Triggered . | . . Disarmed . | . . Reprogrammed . | . . Reused . | . . Traps Extracted . | . . Installed . | . . Triggered . | . . Machines | -11 -10 ---------- Run | Yrd Mat Machines Disabled 1 | . 1 Max in Single Turn 1 | . 1 Machines Repaired . | . . Machines Dismantled . | . . Machines Sabotaged . | . . Overloaded Fab Kills . | . . Hacking | -11 -10 --------- Run | Yrd Mat Machines Accessed 7 | . 7 Terminals 5 | . 5 Fabricators . | . . Repair Stations . | . . Recycling Units 2 | . 2 Scanalyzers . | . . Garrison Access . | . . Total Hacks 22 | . 22 Successful 9 | . 9 Failed 13 | . 13 Catastrophic . | . . Database Lockouts . | . . Manual 5 | . 5 Terminals 18 | . 18 Fabricators . | . . Repair Stations . | . . Recycling Units 4 | . 4 Scanalyzers . | . . Garrison Access . | . . Terminal Hacks 6 | . 6 Record 2 | . 2 Branch Access Points 1 | . 1 Locate Traps 1 | . 1 Registered Components 1 | . 1 Zone Layout 1 | . 1 Fabricator Hacks . | . . Repair Station Hacks . | . . Recycling Unit Hacks 1 | . 1 Retrieve Components 1 | . 1 Scanalyzer . | . . Garrison Access Hacks . | . . Unauthorized Hacks 2 | . 2 Terminals 1 | . 1 Assimilate 1 | . 1 Fabricators . | . . Repair Stations . | . . Recycling Units 1 | . 1 Reject 1 | . 1 Scanalyzers . | . . Garrison Access . | . . Data Cores Recovered . | . . Used . | . . Hacking Detections 7 | . 7 Full Trace Events 4 | . 4 Feedback Events . | . . Feedback Blocked . | . . Robot Schematics Acquired . | . . Robots Built . | . . Authchips . | . . Time . | . . Total Robot Build Rating . | . . Part Schematics Acquired . | . . Parts Built . | . . Authchips . | . . Time . | . . Total Part Build Rating . | . . Parts Repaired . | . . Time . | . . Parts Recycled . | . . Recycled Matter . | . . Retrieved Matter . | . . Retrieved Components 3 | . 3 Parts Scanalyzed . | . . Part Schematics Acquired . | . . Parts Damaged . | . . Bothacking | -11 -10 ------------ Run | Yrd Mat Used RIF Installer . | . . Robots Hacked . | . . Non-combat . | . . Combat . | . . Robot Hacks Applied . | . . Relay Couplers Released . | . . Fabnet Peak Effective % . | . . Robots Rewired . | . . Allies Hacked . | . . Hacks Repelled . | . . Allies | -11 -10 -------- Run | Yrd Mat Total Allies . | . . Largest Group . | . . Highest-Rated Group . | . . Highest-Rated Ally . | . . Total Orders . | . . Ally Attacks . | . . Total Damage . | . . Kills . | . . Allies Corrupted . | . . Allies Melted . | . . Intel | -11 -10 ------- Run | Yrd Mat Robot Analysis Total . | . . Derelict Logs Recovered . | . . Drone Launches . | . . Drone Recoveries . | . . Exploration | -11 -10 ------------- Run | Yrd Mat Turns Passed 1412 | 85 1327 Spaces Moved 694 | 47 647 Core 11 | 2 9 Treads 213 | 45 168 Legs . | . . Wheels 470 | . 470 Hover . | . . Flight . | . . Fastest Speed 50 | 50 50 Average Speed 118 | 155 116 Slowest Speed 160 | 160 160 Overloaded Moves . | . . Propulsion Burnouts . | . . Robots Hopped . | . . Cave-ins Triggered . | . . Exploration Rate (%) 39 | 4 75 Regions Visited 1 Branch Regions . Pre-discovered Areas . | . . Known Exits Taken . | . . Unknown Exits Taken 1 | 1 . Scrap Searched . | . . Spaces Dug . | . . Terrain Destroyed . | . . Melee . | . . Projectile . | . . AOE . | . . Terrain Rammed . | . . Walls Destroyed . | . . Machines Disabled . | . . Actions | -11 -10 --------- Run | Yrd Mat Total 1126 | 56 1070 Wait 295 | . 295 Move 693 | 46 647 Hop . | . . Pick Up 18 | 4 14 Fast Attach 8 | 6 2 Attach . | . . Detach . | . . Swap 11 | . 11 Drop 15 | . 15 Fire 79 | . 79 Melee . | . . Ram 7 | . 7 Kick . | . . Crush . | . . Escape Stasis . | . . Rewire . | . . Trap . | . . Miscellaneous . | . . Route ------- -11/Scrapyard -10/Materials (discovered 5 exits: [*Mat x3] / *Min x2) History --------- Turn | Location | Event 9 | -11/Scrapyard | Discovered new exit (range 14) 86 | -11/Scrapyard | Entered Materials 310 | -10/Materials | Build established: Mutant 355 | -10/Materials | Discovered new exit (range 10) 579 | -10/Materials | Discovered new exit (range 14) 616 | -10/Materials | Core integrity fell below 50% 890 | -10/Materials | Discovered new exit (range 15) 1397 | -10/Materials | Identified exit to Mines 1405 | -10/Materials | Released all parts (6) 1408 | -10/Materials | Core integrity fell below 20% 1409 | -10/Materials | Discovered new exit (range 7) 1413 | -10/Materials | Destroyed by G-34 Mercenary with Small Laser Last Messages --------------- 01346_ Acquired 42 matter. 01347_ Extracted 2 energy. 01397_ Connecting with Terminal... >>Access(Branch) Found 2 branch access points: (11,14) Mines (67,66) Mines Map updated. 01397_ ALERT: Suspicious activity at Terminal M003. Dispatching Investigation squad. 01402_ Ion Engine destroyed. 01403_ K-01 Serf cleans the Matter Pump. 01405_ Released Arm. Wheel. 01405_ Released Lrg. Storage Unit. 01405_ Released Assault Rifle. 01405_ Released Particle Gun. 01405_ Released Imp. Heat Sink. 01405_ Released Arm. Wheel. 01409_ EXIT=FOUND 01410_ Slammed into G-34 Mercenary. Map ----- +----------------------------------------------------+ | | | | | | | | | | | | | | | | | | | | | | | | | ?????????????????????????????????????????????????? | | ?????????????????????????????????????????????????? | | ?????????????????????????????????????????????????? | | ????????????????????????????????########?????????? | | ????????????????????????????????# #?????????? | | ???????????????###??????????????# T #?????????? | | ??????????????## #??#####?????# #?????????? | | ??????????????? ?# #?????# [ #?????????? | | ???????????????? # < #?????# #?????????? | | #####???????????# # #?????# #?????????? | | #"""##????????????? u##########+############# | | "|||"##???????????????# | | " ""#???????????????# ggg | | #???????????????# @%%% =[! | | > #???????????????###############=!! | | ###############???????# #/[ """ | | # #???????# # """ !!= | | ## """"" """ #???????# # """ !== | | # ### ""T"" """ #???????# # !== | | #?# """ #???????# + | | #?# #???????# # | | "" #?# #???????# ### ########## | | "" ########+################ #?# #??# ## | | "" ##### # ! # #?# #??# ## | | # """ """ # #?# #??# ## | | + """ """ # !#?# #??# ## | | # """ """ ####+####?# #??# ## | | ##### # / #??# #????# #??# ## | | ##+##########################??# #???## #### ## | | #????????????????????## ##### ###+### | | #????????????????????# | | " """"" ###################### | | """""""" +!!%!!==! | | """ """ ####################### ##### #####T# | | ############# #????##/###### ######## | | ! #????# !# # # | | <[ %*!* """ #????# """ # # # | | %*! ! """"" #????# """ + + # | +----------------------------------------------------+ Best States ------------- Heat Dissipation 39 Energy Generation 10 Energy Capacity 250 Matter Stores 300 Matter Capacity 300 Sight Range 16 Robot Scan Range 14 Terrain Scan Density 10 Evasion (%) 50 Recoil Reduction 2 Item Schematics ----------------- None Robot Schematics ------------------ None Fabricated ------------ Nothing Alien Tech Used ----------------- None Achievements -------------- None Challenges ------------ None Game ------ Seed SurgeMeleeBlade Manual? 0 Play Time 00:13:24 Cumulative 19.8 hours Start 2024.07.17 @ 10:58:54 End 2024.07.17 @ 11:09:26 Sessions 1 Manual Loads 0 Difficulty Rogue Special Mode None Game No. 64 Rogue 64 Adventurer 0 Explorer 0 Win Type - Total 0 Types 0/0/0/0/0/0/0/0/0 Lore% 26 Gallery% 25 Achievement% 23 Wizard Run 0 Options --------- Layout 1 ASCII 0 Keyboard 0 Movement Arrows Keybinds 0 Fullscreen 1 Font 28/Dina Map View 50x43 Zoom Use 0% Tactical HUD 1 Map Filters NONE Filters NONE Steam X RUN: de45daca-7bf3-4f54-b07e-c17b993494b9